[Event "Early Titled Tuesday Blitz | February 8 2022"]
[White "Papp, Petra"]
[Black "Sadhwani, Raunak"]
[WhiteFideId "739049"]
[BlackFideId "35093487"]
[WhiteElo "2259"]
[BlackElo "2616"]
[Result "0-1"]
[Round "01"]
[TimeControl "180+1"]
[Date "2022.02.08"]
[WhiteClock "0:00:02"]
[BlackClock "0:01:29"]

1. d4 {[%clk 0:02:53]}  Nf6 {[%clk 0:02:59]} 2. c4 {[%clk 0:02:51]}  g6 {[%clk 0:03:00]} 3. Nc3 {[%clk 0:02:51]}  Bg7 {[%clk 0:03:00]} 4. e4 {[%clk 0:02:50]}  d6 {[%clk 0:03:01]} 5. h3 {[%clk 0:02:50]}  O-O {[%clk 0:03:01]} 6. Be3 {[%clk 0:02:50]}  c5 {[%clk 0:02:59]} 7. Nf3 {[%clk 0:02:49]}  cxd4 {[%clk 0:02:59]} 8. Nxd4 {[%clk 0:02:49]}  Nc6 {[%clk 0:02:59]} 9. Be2 {[%clk 0:02:47]}  Bd7 {[%clk 0:02:59]} 10. O-O {[%clk 0:02:48]}  Rc8 {[%clk 0:02:59]} 11. Rc1 {[%clk 0:02:43]}  a6 {[%clk 0:02:57]} 12. b3 {[%clk 0:02:12]}  Nxd4 {[%clk 0:02:53]} 13. Bxd4 {[%clk 0:02:12]}  Bc6 {[%clk 0:02:54]} 14. Nd5 {[%clk 0:01:38]}  Nxe4 {[%clk 0:02:39]} 15. Bxg7 {[%clk 0:01:33]}  Kxg7 {[%clk 0:02:39]} 16. Qd4+ {[%clk 0:01:31]}  Nf6 {[%clk 0:02:39]} 17. Nxf6 {[%clk 0:01:27]}  exf6 {[%clk 0:02:40]} 18. Bg4 {[%clk 0:01:08]}  Rc7 {[%clk 0:02:35]} 19. Rfd1 {[%clk 0:01:06]}  h5 {[%clk 0:02:35]} 20. Be2 {[%clk 0:00:59]}  Re7 {[%clk 0:02:29]} 21. Bf1 {[%clk 0:00:56]}  Re6 {[%clk 0:02:29]} 22. b4 {[%clk 0:00:50]}  Qd7 {[%clk 0:02:18]} 23. Qb6 {[%clk 0:00:41]}  Qe7 {[%clk 0:01:54]} 24. b5 {[%clk 0:00:38]}  Be4 {[%clk 0:01:50]} 25. Qd4 {[%clk 0:00:32]}  Bf5 {[%clk 0:01:43]} 26. a4 {[%clk 0:00:27]}  Rd8 {[%clk 0:01:39]} 27. g3 {[%clk 0:00:19]}  Rc8 {[%clk 0:01:38]} 28. h4 {[%clk 0:00:16]}  Bg4 {[%clk 0:01:37]} 29. Rd2 {[%clk 0:00:12]}  Rc5 {[%clk 0:01:38]} 30. a5 {[%clk 0:00:07]}  axb5 {[%clk 0:01:36]} 31. Rb2 {[%clk 0:00:06]}  bxc4 {[%clk 0:01:34]} 32. Bxc4 {[%clk 0:00:05]}  d5 {[%clk 0:01:34]} 33. Rb5 {[%clk 0:00:02]}  Rxc4 {[%clk 0:01:33]} 34. Rxc4 {[%clk 0:00:02]}  dxc4 {[%clk 0:01:34]} 35. Rb6 {[%clk 0:00:01]}  Re1+ {[%clk 0:01:35]} 36. Kg2 {[%clk 0:00:01]}  Qe5 {[%clk 0:01:27]} 37. Qxe5 {[%clk 0:00:01]}  Rxe5 {[%clk 0:01:28]} 38. Rb4 {[%clk 0:00:01]}  Rxa5 {[%clk 0:01:28]} 39. Rxc4 {[%clk 0:00:02]}  Be6 {[%clk 0:01:28]} 40. Rc7 {[%clk 0:00:02]}  b5 {[%clk 0:01:27]} 41. f4 {[%clk 0:00:02]}  b4 {[%clk 0:01:28]} 42. Kf3 {[%clk 0:00:02]}  Rb5 {[%clk 0:01:28]} 43. Rc2 {[%clk 0:00:02]}  b3 {[%clk 0:01:28]} 44. Rb2 {[%clk 0:00:02]}  Rc5 {[%clk 0:01:29]} 0-1


[Site "https://www.chess.com"]

[Event "Early Titled Tuesday Blitz | February 8 2022"]
[White "Piesik, Piotr"]
[Black "Schut, Han"]
[WhiteFideId "1136194"]
[BlackFideId "1005561"]
[WhiteElo "2232"]
[BlackElo "2057"]
[Result "1-0"]
[Round "01"]
[TimeControl "180+1"]
[Date "2022.02.08"]
[WhiteClock "0:00:45"]
[BlackClock "0:00:04"]

1. Nf3 {[%clk 0:02:48]}  Nf6 {[%clk 0:02:58]} 2. g3 {[%clk 0:02:48]}  g6 {[%clk 0:02:58]} 3. Bg2 {[%clk 0:02:49]}  Bg7 {[%clk 0:02:58]} 4. O-O {[%clk 0:02:50]}  O-O {[%clk 0:02:58]} 5. d4 {[%clk 0:02:50]}  d5 {[%clk 0:02:59]} 6. c4 {[%clk 0:02:50]}  dxc4 {[%clk 0:03:00]} 7. Na3 {[%clk 0:02:50]}  c3 {[%clk 0:02:58]} 8. bxc3 {[%clk 0:02:51]}  c5 {[%clk 0:02:56]} 9. Qb3 {[%clk 0:02:52]}  cxd4 {[%clk 0:02:53]} 10. cxd4 {[%clk 0:02:53]}  Nc6 {[%clk 0:02:54]} 11. Rd1 {[%clk 0:02:51]}  Nd5 {[%clk 0:02:39]} 12. Bb2 {[%clk 0:02:41]}  Na5 {[%clk 0:02:27]} 13. Qc2 {[%clk 0:02:41]}  Bg4 {[%clk 0:02:13]} 14. e4 {[%clk 0:02:39]}  Nb6 {[%clk 0:01:52]} 15. Rac1 {[%clk 0:02:26]}  Rc8 {[%clk 0:01:51]} 16. Qd3 {[%clk 0:02:14]}  Rxc1 {[%clk 0:01:39]} 17. Rxc1 {[%clk 0:02:14]}  Qd7 {[%clk 0:01:28]} 18. Bc3 {[%clk 0:01:58]}  Rc8 {[%clk 0:01:20]} 19. Nd2 {[%clk 0:01:52]}  Nc6 {[%clk 0:01:11]} 20. d5 {[%clk 0:01:47]}  Nd4 {[%clk 0:00:58]} 21. f3 {[%clk 0:01:43]}  Bh3 {[%clk 0:00:36]} 22. Bxh3 {[%clk 0:01:34]}  Qxh3 {[%clk 0:00:34]} 23. Nb3 {[%clk 0:01:34]}  Nxb3 {[%clk 0:00:28]} 24. axb3 {[%clk 0:01:35]}  Bxc3 {[%clk 0:00:23]} 25. Rxc3 {[%clk 0:01:35]}  Rxc3 {[%clk 0:00:24]} 26. Qxc3 {[%clk 0:01:36]}  Qd7 {[%clk 0:00:24]} 27. Qc5 {[%clk 0:01:33]}  e6 {[%clk 0:00:20]} 28. d6 {[%clk 0:01:32]}  e5 {[%clk 0:00:20]} 29. Qxe5 {[%clk 0:01:30]}  Nc8 {[%clk 0:00:15]} 30. Nc4 {[%clk 0:01:25]}  b5 {[%clk 0:00:15]} 31. Ne3 {[%clk 0:01:20]}  Nxd6 {[%clk 0:00:15]} 32. Nd5 {[%clk 0:01:20]}  Ne8 {[%clk 0:00:13]} 33. b4 {[%clk 0:01:18]}  a6 {[%clk 0:00:13]} 34. Qxe8+ {[%clk 0:01:14]}  Qxe8 {[%clk 0:00:14]} 35. Nf6+ {[%clk 0:01:15]}  Kf8 {[%clk 0:00:14]} 36. Nxe8 {[%clk 0:01:15]}  Kxe8 {[%clk 0:00:15]} 37. Kf2 {[%clk 0:01:16]}  Kd7 {[%clk 0:00:16]} 38. Ke3 {[%clk 0:01:16]}  Kc6 {[%clk 0:00:16]} 39. Kd4 {[%clk 0:01:16]}  Kb6 {[%clk 0:00:17]} 40. e5 {[%clk 0:01:13]}  a5 {[%clk 0:00:16]} 41. bxa5+ {[%clk 0:01:13]}  Kxa5 {[%clk 0:00:17]} 42. Kc3 {[%clk 0:01:09]}  Kb6 {[%clk 0:00:16]} 43. Kb4 {[%clk 0:01:09]}  Kc6 {[%clk 0:00:17]} 44. f4 {[%clk 0:01:09]}  h5 {[%clk 0:00:16]} 45. h4 {[%clk 0:01:06]}  Kb6 {[%clk 0:00:16]} 46. Kc3 {[%clk 0:00:57]}  Kc5 {[%clk 0:00:16]} 47. Kd3 {[%clk 0:00:55]}  b4 {[%clk 0:00:12]} 48. g4 {[%clk 0:00:55]}  hxg4 {[%clk 0:00:12]} 49. f5 {[%clk 0:00:55]}  g3 {[%clk 0:00:09]} 50. e6 {[%clk 0:00:53]}  Kd6 {[%clk 0:00:04]} 51. exf7 {[%clk 0:00:53]}  Ke7 {[%clk 0:00:04]} 52. fxg6 {[%clk 0:00:46]}  g2 {[%clk 0:00:04]} 53. g7 {[%clk 0:00:45]}  g1=Q {[%clk 0:00:04]} 54. f8=Q+ {[%clk 0:00:45]} 1-0


[Site "https://www.chess.com"]

[Event "Early Titled Tuesday Blitz | February 8 2022"]
[White "Popadic, Dragan"]
[Black "Murzin, Volodar"]
[WhiteFideId "913650"]
[BlackFideId "44155573"]
[WhiteElo "2199"]
[BlackElo "2585"]
[Result "0-1"]
[Round "01"]
[TimeControl "180+1"]
[Date "2022.02.08"]
[WhiteClock "0:01:15"]
[BlackClock "0:00:52"]

1. e4 {[%clk 0:03:00]}  c6 {[%clk 0:02:59]} 2. d4 {[%clk 0:02:59]}  d5 {[%clk 0:03:00]} 3. Nd2 {[%clk 0:02:59]}  dxe4 {[%clk 0:02:57]} 4. Nxe4 {[%clk 0:02:59]}  Bf5 {[%clk 0:02:58]} 5. Ng3 {[%clk 0:02:59]}  Bg6 {[%clk 0:02:58]} 6. h4 {[%clk 0:03:00]}  h6 {[%clk 0:02:58]} 7. Nf3 {[%clk 0:03:00]}  e6 {[%clk 0:02:55]} 8. Ne5 {[%clk 0:02:58]}  Bh7 {[%clk 0:02:55]} 9. Bc4 {[%clk 0:02:58]}  Nd7 {[%clk 0:02:50]} 10. Qe2 {[%clk 0:02:58]}  Nxe5 {[%clk 0:02:30]} 11. dxe5 {[%clk 0:02:57]}  Ne7 {[%clk 0:02:29]} 12. Bb3 {[%clk 0:02:57]}  Nd5 {[%clk 0:02:20]} 13. Bd2 {[%clk 0:02:55]}  a5 {[%clk 0:02:17]} 14. a4 {[%clk 0:02:49]}  Qb6 {[%clk 0:02:09]} 15. Ne4 {[%clk 0:02:42]}  Qd4 {[%clk 0:02:00]} 16. Bxd5 {[%clk 0:02:11]}  Qxd5 {[%clk 0:01:09]} 17. Nc3 {[%clk 0:02:09]}  Qxg2 {[%clk 0:01:09]} 18. O-O-O {[%clk 0:02:08]}  Qg6 {[%clk 0:01:10]} 19. Be3 {[%clk 0:02:00]}  Bb4 {[%clk 0:01:07]} 20. Rhg1 {[%clk 0:01:55]}  Qf5 {[%clk 0:01:06]} 21. Rxg7 {[%clk 0:01:49]}  Bxc3 {[%clk 0:00:55]} 22. bxc3 {[%clk 0:01:49]}  Qxe5 {[%clk 0:00:55]} 23. Bd4 {[%clk 0:01:15]}  Qxe2 {[%clk 0:00:52]} 0-1


[Site "https://www.chess.com"]

[Event "Early Titled Tuesday Blitz | February 8 2022"]
[White "Rasulov, Vugar"]
[Black "Gatterer, Florian"]
[WhiteFideId "13402390"]
[BlackFideId "811688"]
[WhiteElo "2560"]
[BlackElo "2218"]
[Result "1-0"]
[Round "01"]
[TimeControl "180+1"]
[Date "2022.02.08"]
[WhiteClock "0:01:58"]
[BlackClock "0:00:26"]

1. Nf3 {[%clk 0:02:59]}  d5 {[%clk 0:02:57]} 2. c4 {[%clk 0:03:00]}  d4 {[%clk 0:02:52]} 3. b4 {[%clk 0:02:58]}  c5 {[%clk 0:02:52]} 4. e3 {[%clk 0:02:58]}  dxe3 {[%clk 0:02:44]} 5. fxe3 {[%clk 0:02:57]}  cxb4 {[%clk 0:02:44]} 6. d4 {[%clk 0:02:58]}  Nf6 {[%clk 0:02:38]} 7. a3 {[%clk 0:02:57]}  bxa3 {[%clk 0:02:34]} 8. Bxa3 {[%clk 0:02:58]}  g6 {[%clk 0:02:34]} 9. Bd3 {[%clk 0:02:55]}  Bg7 {[%clk 0:02:34]} 10. O-O {[%clk 0:02:56]}  O-O {[%clk 0:02:33]} 11. Nc3 {[%clk 0:02:55]}  Nc6 {[%clk 0:02:29]} 12. Qe2 {[%clk 0:02:55]}  Re8 {[%clk 0:02:27]} 13. d5 {[%clk 0:02:49]}  Nb8 {[%clk 0:02:24]} 14. Rfc1 {[%clk 0:02:48]}  Nbd7 {[%clk 0:02:18]} 15. Kh1 {[%clk 0:02:42]}  Ng4 {[%clk 0:02:17]} 16. e4 {[%clk 0:02:36]}  Nde5 {[%clk 0:02:14]} 17. Nxe5 {[%clk 0:02:36]}  Nxe5 {[%clk 0:02:14]} 18. c5 {[%clk 0:02:35]}  e6 {[%clk 0:01:57]} 19. Bb5 {[%clk 0:02:29]}  Bd7 {[%clk 0:01:51]} 20. d6 {[%clk 0:02:29]}  Nc6 {[%clk 0:01:39]} 21. Qf2 {[%clk 0:02:06]}  Qf6 {[%clk 0:01:33]} 22. Qxf6 {[%clk 0:02:04]}  Bxf6 {[%clk 0:01:34]} 23. Rab1 {[%clk 0:02:05]}  Red8 {[%clk 0:01:27]} 24. Ba4 {[%clk 0:02:01]}  Rab8 {[%clk 0:01:18]} 25. Ne2 {[%clk 0:02:01]}  Na5 {[%clk 0:01:00]} 26. Bxd7 {[%clk 0:01:59]}  Rxd7 {[%clk 0:01:00]} 27. c6 {[%clk 0:01:59]}  Nxc6 {[%clk 0:00:26]} 28. Rxc6 {[%clk 0:01:58]} 1-0


[Site "https://www.chess.com"]

[Event "Early Titled Tuesday Blitz | February 8 2022"]
[White "Redzisz, Michal"]
[Black "Lorparizangeneh, Shahin"]
[WhiteFideId "21816107"]
[BlackFideId "12521604"]
[WhiteElo "1961"]
[BlackElo "2525"]
[Result "0-1"]
[Round "01"]
[TimeControl "180+1"]
[Date "2022.02.08"]
[WhiteClock "0:00:48"]
[BlackClock "0:01:30"]

1. c4 {[%clk 0:03:00]}  e5 {[%clk 0:02:59]} 2. Nc3 {[%clk 0:02:59]}  Bb4 {[%clk 0:02:59]} 3. g3 {[%clk 0:02:59]}  Bxc3 {[%clk 0:02:59]} 4. dxc3 {[%clk 0:03:00]}  d6 {[%clk 0:02:59]} 5. Bg2 {[%clk 0:03:01]}  Nc6 {[%clk 0:02:59]} 6. Nf3 {[%clk 0:02:58]}  Be6 {[%clk 0:02:57]} 7. b3 {[%clk 0:02:57]}  Qd7 {[%clk 0:02:57]} 8. e4 {[%clk 0:02:51]}  Bh3 {[%clk 0:02:55]} 9. O-O {[%clk 0:02:49]}  Bxg2 {[%clk 0:02:52]} 10. Kxg2 {[%clk 0:02:50]}  f5 {[%clk 0:02:52]} 11. Re1 {[%clk 0:02:41]}  fxe4 {[%clk 0:02:51]} 12. Rxe4 {[%clk 0:02:40]}  Nf6 {[%clk 0:02:52]} 13. Re1 {[%clk 0:02:39]}  O-O {[%clk 0:02:49]} 14. Be3 {[%clk 0:02:33]}  Qf5 {[%clk 0:02:47]} 15. Nd2 {[%clk 0:02:31]}  Ng4 {[%clk 0:02:45]} 16. Qe2 {[%clk 0:02:27]}  Rf6 {[%clk 0:02:31]} 17. h3 {[%clk 0:02:20]}  Nxe3+ {[%clk 0:02:28]} 18. fxe3 {[%clk 0:02:02]}  Raf8 {[%clk 0:02:19]} 19. Rf1 {[%clk 0:01:58]}  Qc2 {[%clk 0:02:19]} 20. Rac1 {[%clk 0:01:21]}  Qxa2 {[%clk 0:02:10]} 21. Qd3 {[%clk 0:01:19]}  e4 {[%clk 0:01:37]} 22. Qd5+ {[%clk 0:01:19]}  Kh8 {[%clk 0:01:37]} 23. Rxf6 {[%clk 0:00:54]}  Rxf6 {[%clk 0:01:38]} 24. Rf1 {[%clk 0:00:54]}  Rxf1 {[%clk 0:01:33]} 25. Kxf1 {[%clk 0:00:55]}  Qa1+ {[%clk 0:01:33]} 26. Ke2 {[%clk 0:00:52]}  Qxc3 {[%clk 0:01:33]} 27. Qxe4 {[%clk 0:00:52]}  Qe5 {[%clk 0:01:31]} 28. Qf3 {[%clk 0:00:48]}  Nd4+ {[%clk 0:01:30]} 0-1


[Site "https://www.chess.com"]

[Event "Early Titled Tuesday Blitz | February 8 2022"]
[White "Rodchenkov, Sergey D."]
[Black "Onyshchuk, Volodymyr"]
[WhiteFideId "4168712"]
[BlackFideId "14114038"]
[WhiteElo "2306"]
[BlackElo "2642"]
[Result "0-1"]
[Round "01"]
[TimeControl "180+1"]
[Date "2022.02.08"]
[WhiteClock "0:00:54"]
[BlackClock "0:00:51"]

1. e4 {[%clk 0:03:00]}  g6 {[%clk 0:02:59]} 2. d4 {[%clk 0:03:00]}  Bg7 {[%clk 0:03:00]} 3. Nc3 {[%clk 0:03:00]}  d6 {[%clk 0:02:59]} 4. Nf3 {[%clk 0:03:00]}  Nf6 {[%clk 0:02:58]} 5. h3 {[%clk 0:02:59]}  O-O {[%clk 0:02:58]} 6. Be2 {[%clk 0:02:59]}  a6 {[%clk 0:02:57]} 7. a4 {[%clk 0:02:58]}  Nc6 {[%clk 0:02:56]} 8. O-O {[%clk 0:02:56]}  e5 {[%clk 0:02:56]} 9. dxe5 {[%clk 0:02:53]}  dxe5 {[%clk 0:02:55]} 10. Be3 {[%clk 0:02:40]}  Be6 {[%clk 0:02:45]} 11. Qc1 {[%clk 0:02:31]}  Qe7 {[%clk 0:02:41]} 12. Bg5 {[%clk 0:02:23]}  Rad8 {[%clk 0:02:39]} 13. Qe3 {[%clk 0:02:23]}  Nd4 {[%clk 0:02:37]} 14. Rac1 {[%clk 0:02:08]}  Qc5 {[%clk 0:02:20]} 15. Rfd1 {[%clk 0:01:54]}  Rd6 {[%clk 0:02:19]} 16. Bd3 {[%clk 0:01:31]}  Re8 {[%clk 0:01:49]} 17. Kh1 {[%clk 0:01:30]}  Nh5 {[%clk 0:01:45]} 18. Ne2 {[%clk 0:01:21]}  Qb6 {[%clk 0:01:28]} 19. Nfxd4 {[%clk 0:01:22]}  exd4 {[%clk 0:01:26]} 20. Qf3 {[%clk 0:01:20]}  h6 {[%clk 0:01:06]} 21. Bd2 {[%clk 0:01:16]}  Bd7 {[%clk 0:01:05]} 22. g4 {[%clk 0:01:06]}  Nf6 {[%clk 0:01:03]} 23. b3 {[%clk 0:01:02]}  Nxe4 {[%clk 0:01:02]} 24. Bf4 {[%clk 0:00:58]}  Bc6 {[%clk 0:00:56]} 25. Kg1 {[%clk 0:00:58]}  Rf6 {[%clk 0:00:52]} 26. Bxe4 {[%clk 0:00:54]}  Rxe4 {[%clk 0:00:51]} 0-1


[Site "https://www.chess.com"]

[Event "Early Titled Tuesday Blitz | February 8 2022"]
[White "Roman, Rodrigo"]
[Black "Sargsyan, Anna M."]
[WhiteFideId "3701220"]
[BlackFideId "13308130"]
[WhiteElo "2001"]
[BlackElo "2271"]
[Result "0-1"]
[Round "01"]
[TimeControl "180+1"]
[Date "2022.02.08"]
[WhiteClock "0:02:17"]
[BlackClock "0:02:08"]

1. e4 {[%clk 0:02:54]}  c6 {[%clk 0:02:59]} 2. Ne2 {[%clk 0:02:54]}  d5 {[%clk 0:03:00]} 3. e5 {[%clk 0:02:53]}  c5 {[%clk 0:02:58]} 4. d4 {[%clk 0:02:53]}  Nc6 {[%clk 0:02:58]} 5. c3 {[%clk 0:02:53]}  Bf5 {[%clk 0:02:58]} 6. Ng3 {[%clk 0:02:51]}  Bxb1 {[%clk 0:02:52]} 7. Rxb1 {[%clk 0:02:50]}  e6 {[%clk 0:02:38]} 8. Be2 {[%clk 0:02:42]}  cxd4 {[%clk 0:02:16]} 9. cxd4 {[%clk 0:02:42]}  Qa5+ {[%clk 0:02:17]} 10. Qd2 {[%clk 0:02:42]}  Bb4 {[%clk 0:02:16]} 11. Qxb4 {[%clk 0:02:25]}  Qxb4+ {[%clk 0:02:14]} 12. Bd2 {[%clk 0:02:26]}  Qxd4 {[%clk 0:02:14]} 13. Bc3 {[%clk 0:02:27]}  Qh4 {[%clk 0:02:09]} 14. O-O {[%clk 0:02:27]}  Nge7 {[%clk 0:02:09]} 15. Bb5 {[%clk 0:02:27]}  O-O {[%clk 0:02:09]} 16. a4 {[%clk 0:02:26]}  d4 {[%clk 0:02:09]} 17. Bd2 {[%clk 0:02:25]}  Nxe5 {[%clk 0:02:09]} 18. f4 {[%clk 0:02:25]}  Ng4 {[%clk 0:02:09]} 19. h3 {[%clk 0:02:19]}  Qxg3 {[%clk 0:02:08]} 20. Rf3 {[%clk 0:02:17]}  Qh2+ {[%clk 0:02:08]} 0-1


[Site "https://www.chess.com"]

[Event "Early Titled Tuesday Blitz | February 8 2022"]
[White "Rudzinska, Michalina"]
[Black "Aditya Mittal"]
[WhiteFideId "1172883"]
[BlackFideId "35042025"]
[WhiteElo "1904"]
[BlackElo "2287"]
[Result "0-1"]
[Round "01"]
[TimeControl "180+1"]
[Date "2022.02.08"]
[WhiteClock "0:00:40"]
[BlackClock "0:00:25"]

1. e3 {[%clk 0:02:53]}  Nf6 {[%clk 0:02:58]} 2. d4 {[%clk 0:02:51]}  g6 {[%clk 0:02:58]} 3. Nf3 {[%clk 0:02:52]}  Bg7 {[%clk 0:02:57]} 4. b3 {[%clk 0:02:52]}  O-O {[%clk 0:02:57]} 5. Bb2 {[%clk 0:02:50]}  a5 {[%clk 0:02:58]} 6. a3 {[%clk 0:02:49]}  b6 {[%clk 0:02:57]} 7. c4 {[%clk 0:02:49]}  Bb7 {[%clk 0:02:57]} 8. Bd3 {[%clk 0:02:48]}  e6 {[%clk 0:02:55]} 9. O-O {[%clk 0:02:48]}  d5 {[%clk 0:02:51]} 10. Nbd2 {[%clk 0:02:48]}  Nbd7 {[%clk 0:02:51]} 11. Re1 {[%clk 0:02:47]}  Ne4 {[%clk 0:02:47]} 12. Qc2 {[%clk 0:02:39]}  f5 {[%clk 0:02:46]} 13. Ne5 {[%clk 0:02:31]}  Nxe5 {[%clk 0:01:54]} 14. dxe5 {[%clk 0:02:22]}  Qh4 {[%clk 0:01:49]} 15. Nf3 {[%clk 0:02:15]}  Qe7 {[%clk 0:01:39]} 16. h3 {[%clk 0:02:09]}  c5 {[%clk 0:01:33]} 17. cxd5 {[%clk 0:02:08]}  exd5 {[%clk 0:01:33]} 18. Rad1 {[%clk 0:01:42]}  Rad8 {[%clk 0:01:24]} 19. Bb5 {[%clk 0:01:34]}  g5 {[%clk 0:01:21]} 20. b4 {[%clk 0:01:24]}  axb4 {[%clk 0:01:18]} 21. axb4 {[%clk 0:01:25]}  g4 {[%clk 0:01:17]} 22. Nd2 {[%clk 0:01:24]}  gxh3 {[%clk 0:01:14]} 23. Nxe4 {[%clk 0:01:20]}  fxe4 {[%clk 0:01:08]} 24. g3 {[%clk 0:01:20]}  c4 {[%clk 0:00:47]} 25. Kh2 {[%clk 0:01:11]}  Bxe5 {[%clk 0:00:37]} 26. Bxe5 {[%clk 0:01:08]}  Qxe5 {[%clk 0:00:38]} 27. Rh1 {[%clk 0:00:57]}  Rd6 {[%clk 0:00:34]} 28. Kg1 {[%clk 0:00:54]}  Bc8 {[%clk 0:00:26]} 29. Qe2 {[%clk 0:00:47]}  Kg7 {[%clk 0:00:25]} 30. Kf1 {[%clk 0:00:40]}  Rdf6 {[%clk 0:00:25]} 31. Rh2 {[%clk 0:00:40]}  Qxg3 {[%clk 0:00:25]} 0-1


[Site "https://www.chess.com"]

[Event "Early Titled Tuesday Blitz | February 8 2022"]
[White "Shimelkov, Vasiliy"]
[Black "Pasini, Nicolo"]
[WhiteFideId "13701630"]
[BlackFideId "2809600"]
[WhiteElo "2073"]
[BlackElo "2065"]
[Result "1-0"]
[Round "01"]
[TimeControl "180+1"]
[Date "2022.02.08"]
[WhiteClock "0:01:42"]
[BlackClock "0:00:03"]

1. d4 {[%clk 0:03:00]}  g6 {[%clk 0:02:57]} 2. c4 {[%clk 0:03:00]}  Bg7 {[%clk 0:02:48]} 3. Nf3 {[%clk 0:02:59]}  c5 {[%clk 0:02:35]} 4. d5 {[%clk 0:02:58]}  b5 {[%clk 0:01:38]} 5. cxb5 {[%clk 0:02:57]}  a6 {[%clk 0:01:35]} 6. bxa6 {[%clk 0:02:57]}  Nf6 {[%clk 0:01:27]} 7. Nc3 {[%clk 0:02:55]}  Bxa6 {[%clk 0:01:09]} 8. g3 {[%clk 0:02:53]}  O-O {[%clk 0:01:01]} 9. Bg2 {[%clk 0:02:53]}  d6 {[%clk 0:01:01]} 10. O-O {[%clk 0:02:52]}  Nbd7 {[%clk 0:01:00]} 11. h3 {[%clk 0:02:52]}  Nb6 {[%clk 0:01:00]} 12. Re1 {[%clk 0:02:51]}  Ne8 {[%clk 0:00:50]} 13. Rb1 {[%clk 0:02:47]}  Nc7 {[%clk 0:00:49]} 14. e4 {[%clk 0:02:45]}  Qd7 {[%clk 0:00:39]} 15. Bd2 {[%clk 0:02:41]}  Rfb8 {[%clk 0:00:32]} 16. Qc2 {[%clk 0:02:38]}  Nc4 {[%clk 0:00:22]} 17. a4 {[%clk 0:02:33]}  Rb7 {[%clk 0:00:11]} 18. Bc1 {[%clk 0:02:17]}  Rab8 {[%clk 0:00:10]} 19. b3 {[%clk 0:02:15]}  Na5 {[%clk 0:00:09]} 20. Nd2 {[%clk 0:02:13]}  c4 {[%clk 0:00:08]} 21. b4 {[%clk 0:01:59]}  Rxb4 {[%clk 0:00:07]} 22. Rxb4 {[%clk 0:01:59]}  Rxb4 {[%clk 0:00:08]} 23. Ba3 {[%clk 0:01:58]}  Rb7 {[%clk 0:00:06]} 24. Rb1 {[%clk 0:01:55]}  Bxc3 {[%clk 0:00:06]} 25. Rxb7 {[%clk 0:01:53]}  Qxa4 {[%clk 0:00:06]} 26. Rb8+ {[%clk 0:01:50]}  Kg7 {[%clk 0:00:05]} 27. Qxa4 {[%clk 0:01:47]}  Bxd2 {[%clk 0:00:03]} 28. Bb4 {[%clk 0:01:42]} 1-0


[Site "https://www.chess.com"]

[Event "Early Titled Tuesday Blitz | February 8 2022"]
[White "Shuvalov, Evgenij"]
[Black "Caruana, Fabiano"]
[WhiteFideId "4187237"]
[BlackFideId "2020009"]
[WhiteElo "2119"]
[BlackElo "2744"]
[Result "0-1"]
[Round "01"]
[TimeControl "180+1"]
[Date "2022.02.08"]
[WhiteClock "0:00:02"]
[BlackClock "0:00:38"]

1. Nf3 {[%clk 0:03:00]}  d5 {[%clk 0:02:59]} 2. c4 {[%clk 0:03:00]}  d4 {[%clk 0:02:59]} 3. b4 {[%clk 0:02:59]}  g6 {[%clk 0:02:59]} 4. d3 {[%clk 0:02:58]}  Bg7 {[%clk 0:02:59]} 5. g3 {[%clk 0:02:58]}  e5 {[%clk 0:03:00]} 6. Bg2 {[%clk 0:02:58]}  Ne7 {[%clk 0:03:00]} 7. Nbd2 {[%clk 0:02:59]}  O-O {[%clk 0:03:00]} 8. O-O {[%clk 0:02:58]}  a5 {[%clk 0:02:59]} 9. bxa5 {[%clk 0:02:54]}  Nbc6 {[%clk 0:02:59]} 10. Nb3 {[%clk 0:02:54]}  Nxa5 {[%clk 0:02:56]} 11. Nxa5 {[%clk 0:02:52]}  Rxa5 {[%clk 0:02:57]} 12. a4 {[%clk 0:02:51]}  h6 {[%clk 0:02:55]} 13. Bd2 {[%clk 0:02:50]}  Ra6 {[%clk 0:02:56]} 14. a5 {[%clk 0:02:50]}  g5 {[%clk 0:02:51]} 15. Bb4 {[%clk 0:02:47]}  Re8 {[%clk 0:02:51]} 16. Bxe7 {[%clk 0:02:37]}  Qxe7 {[%clk 0:02:46]} 17. Nd2 {[%clk 0:02:38]}  c6 {[%clk 0:02:42]} 18. Qb3 {[%clk 0:02:25]}  Kh7 {[%clk 0:02:40]} 19. Rfb1 {[%clk 0:02:22]}  h5 {[%clk 0:02:38]} 20. Qa3 {[%clk 0:02:20]}  Qxa3 {[%clk 0:02:27]} 21. Rxa3 {[%clk 0:02:21]}  f5 {[%clk 0:02:24]} 22. Ra2 {[%clk 0:01:59]}  Bf8 {[%clk 0:02:21]} 23. Kf1 {[%clk 0:00:54]}  Kg6 {[%clk 0:02:18]} 24. Nb3 {[%clk 0:00:48]}  Bd6 {[%clk 0:02:09]} 25. Rbb2 {[%clk 0:00:46]}  Be6 {[%clk 0:02:05]} 26. Nd2 {[%clk 0:00:42]}  Rb8 {[%clk 0:01:53]} 27. Ke1 {[%clk 0:00:35]}  Bc7 {[%clk 0:01:49]} 28. Nb3 {[%clk 0:00:34]}  Bf7 {[%clk 0:01:49]} 29. Kd1 {[%clk 0:00:32]}  Bd6 {[%clk 0:01:32]} 30. Nd2 {[%clk 0:00:28]}  h4 {[%clk 0:01:28]} 31. Ke1 {[%clk 0:00:25]}  Bc7 {[%clk 0:01:26]} 32. Kd1 {[%clk 0:00:24]}  hxg3 {[%clk 0:01:10]} 33. hxg3 {[%clk 0:00:25]}  g4 {[%clk 0:01:09]} 34. Nb3 {[%clk 0:00:25]}  Bd6 {[%clk 0:01:08]} 35. Nd2 {[%clk 0:00:24]}  Ra7 {[%clk 0:01:02]} 36. Rb1 {[%clk 0:00:16]}  Rh8 {[%clk 0:00:47]} 37. Rab2 {[%clk 0:00:15]}  Rh2 {[%clk 0:00:47]} 38. Bf1 {[%clk 0:00:14]}  Rxf2 {[%clk 0:00:45]} 39. Ke1 {[%clk 0:00:14]}  Rh2 {[%clk 0:00:44]} 40. Rxb7 {[%clk 0:00:14]}  Rxa5 {[%clk 0:00:44]} 41. R7b6 {[%clk 0:00:12]}  Be8 {[%clk 0:00:43]} 42. c5 {[%clk 0:00:11]}  Rxc5 {[%clk 0:00:43]} 43. Nc4 {[%clk 0:00:10]}  Rxc4 {[%clk 0:00:43]} 44. dxc4 {[%clk 0:00:10]}  e4 {[%clk 0:00:44]} 45. c5 {[%clk 0:00:08]}  Bxg3+ {[%clk 0:00:44]} 46. Kd1 {[%clk 0:00:08]}  Rf2 {[%clk 0:00:41]} 47. Kc2 {[%clk 0:00:07]}  d3+ {[%clk 0:00:42]} 48. Kc3 {[%clk 0:00:08]}  dxe2 {[%clk 0:00:42]} 49. Bxe2 {[%clk 0:00:08]}  Rxe2 {[%clk 0:00:43]} 50. Rd1 {[%clk 0:00:06]}  Be5+ {[%clk 0:00:42]} 51. Kc4 {[%clk 0:00:06]}  Bf7+ {[%clk 0:00:43]} 52. Kb4 {[%clk 0:00:06]}  Rb2+ {[%clk 0:00:42]} 53. Ka3 {[%clk 0:00:05]}  Rxb6 {[%clk 0:00:39]} 54. cxb6 {[%clk 0:00:06]}  g3 {[%clk 0:00:40]} 55. b7 {[%clk 0:00:06]}  f4 {[%clk 0:00:39]} 56. Rd8 {[%clk 0:00:06]}  e3 {[%clk 0:00:37]} 57. b8=Q {[%clk 0:00:02]}  Bxb8 {[%clk 0:00:37]} 58. Rxb8 {[%clk 0:00:03]}  g2 {[%clk 0:00:38]} 59. Rb1 {[%clk 0:00:02]}  f3 {[%clk 0:00:38]} 60. Kb4 {[%clk 0:00:03]}  f2 {[%clk 0:00:38]} 61. Kc5 {[%clk 0:00:03]}  g1=Q {[%clk 0:00:39]} 62. Rxg1+ {[%clk 0:00:02]}  fxg1=Q {[%clk 0:00:38]} 0-1


[Site "https://www.chess.com"]